[Event "16th EWICC 2015"]
[Site "Kutaisi"]
[Date "2015.06.01"]
[Round "3"]
[White "Khomeriki, Nino"]
[Black "Guramishvili, Sopiko"]
[Result "1/2-1/2"]
[ECO "A13"]
[WhiteElo "2228"]
[BlackElo "2370"]
[Annotator "Robot 11"]
[PlyCount "146"]
[EventDate "2015.??.??"]
[EventCountry "GEO"]
[TimeControl "900+10"]

1. Nf3 {[%emt 0:00:03]} d5 {[%emt 0:00:09]} 2. c4 {[%emt 0:00:05]} e6 {[%emt 0:
00:04]} 3. g3 {[%emt 0:00:04]} Nf6 {[%emt 0:00:02]} 4. Bg2 {[%emt 0:00:04]} d4
{[%emt 0:00:02]} 5. e3 {[%emt 0:00:19]} c5 {[%emt 0:00:02]} 6. exd4 {[%emt 0:
00:02]} cxd4 {[%emt 0:00:01]} 7. d3 {[%emt 0:00:18]} Nc6 {[%emt 0:00:02]} 8.
O-O {[%emt 0:00:03]} Bd6 {[%emt 0:00:03]} 9. b3 {[%emt 0:02:02]} O-O {[%emt 0:
00:12]} 10. Na3 {[%emt 0:01:03]} Re8 {[%emt 0:00:33]} 11. Nc2 {[%emt 0:00:03]}
e5 {[%emt 0:00:02]} 12. Re1 {[%emt 0:01:08]} a5 {[%emt 0:00:58]} 13. a3 {[%emt
0:00:42]} h6 {[%emt 0:00:09]} 14. Rb1 {[%emt 0:00:25]} Bf5 {[%emt 0:00:33]} 15.
b4 {[%emt 0:01:06]} axb4 {[%emt 0:00:03]} 16. axb4 {[%emt 0:00:01]} Qc7 {[%emt
0:03:12]} 17. b5 {[%emt 0:02:36]} Na5 {[%emt 0:00:11]} 18. b6 {[%emt 0:00:59]}
Qc8 {[%emt 0:00:57]} 19. Rb5 {[%emt 0:00:27]} Nc6 {[%emt 0:00:58]} 20. Nh4 {
[%emt 0:01:40]} Bg4 {[%emt 0:02:25]} 21. f3 {[%emt 0:00:29]} Bd7 {[%emt 0:00:
04]} 22. f4 {[%emt 0:00:28]} exf4 {[%emt 0:00:25]} 23. Bxf4 {[%emt 0:00:58]}
Bxf4 {[%emt 0:00:02]} 24. gxf4 {[%emt 0:00:01]} Ra2 {[%emt 0:00:07]} 25. Nf3 {
[%emt 0:02:41]} Rxe1+ {[%emt 0:02:00]} 26. Ncxe1 {[%emt 0:00:02]} Bh3 {[%emt 0:
00:20]} 27. Qb1 {[%emt 0:00:55]} Re2 {[%emt 0:00:16]} 28. Qd1 {[%emt 0:00:28]}
Re3 {[%emt 0:00:04]} 29. Nc2 {[%emt 0:00:08]} Bxg2 {[%emt 0:01:08]} 30. Nxe3 {
[%emt 0:00:07]} dxe3 {[%emt 0:00:01]} 31. Ne5 {[%emt 0:00:26]} Nd4 {[%emt 0:01:
00]} 32. Kxg2 {[%emt 0:00:05]} Nxb5 {[%emt 0:00:02]} 33. cxb5 {[%emt 0:00:02]}
Nd5 {[%emt 0:00:13]} 34. Qf3 {[%emt 0:00:27]} Qc2+ {[%emt 0:00:24]} 35. Kh3 {
[%emt 0:00:03]} Qc5 {[%emt 0:00:11]} 36. Kg3 {[%emt 0:00:12]} Qd4 {[%emt 0:00:
19]} 37. Qe4 {[%emt 0:00:12]} Qxe4 {[%emt 0:00:59]} 38. dxe4 {[%emt 0:00:01]}
e2 {[%emt 0:00:12]} 39. Nd3 {[%emt 0:00:14]} Nxb6 {[%emt 0:00:43]} 40. Kf2 {
[%emt 0:00:05]} Na4 {[%emt 0:00:14]} 41. Kxe2 {[%emt 0:00:07]} Nc3+ {[%emt 0:
00:01]} 42. Ke3 {[%emt 0:00:11]} Nxb5 {[%emt 0:00:01]} 43. Nc5 {[%emt 0:00:01]}
Nd6 {[%emt 0:00:20]} 44. Kd4 {[%emt 0:00:31]} Kf8 {[%emt 0:00:33]} 45. e5 {
[%emt 0:00:12]} Nb5+ {[%emt 0:00:20]} 46. Ke3 {[%emt 0:00:09]} Ke7 {[%emt 0:00:
16]} 47. Nxb7 {[%emt 0:00:02]} Ke6 {[%emt 0:00:02]} 48. Nd8+ {[%emt 0:00:09]}
Ke7 {[%emt 0:00:01]} 49. Nc6+ {[%emt 0:00:02]} Kd7 {[%emt 0:00:02]} 50. Nb4 {
[%emt 0:00:19]} Ke6 {[%emt 0:00:08]} 51. Ke4 {[%emt 0:00:17]} Nc3+ {[%emt 0:00:
06]} 52. Kd4 {[%emt 0:00:07]} Ne2+ {[%emt 0:00:38]} 53. Ke3 {[%emt 0:00:01]}
Nc3 {[%emt 0:00:11]} 54. Kd4 {[%emt 0:00:01]} Nb5+ {[%emt 0:00:03]} 55. Ke4 {
[%emt 0:00:02]} g6 {[%emt 0:00:07]} 56. Nc6 {[%emt 0:00:27]} Kd7 {[%emt 0:00:
44]} 57. Nb4 {[%emt 0:00:06]} Nc3+ {[%emt 0:00:50]} 58. Kd4 {[%emt 0:00:06]}
Ne2+ {[%emt 0:00:04]} 59. Ke3 {[%emt 0:00:05]} Nc3 {[%emt 0:00:05]} 60. Kd3 {
[%emt 0:00:04]} Nb5 {[%emt 0:00:06]} 61. Kc4 {[%emt 0:00:07]} Nc7 {[%emt 0:00:
04]} 62. Kd4 {[%emt 0:00:10]} Ne6+ {[%emt 0:00:17]} 63. Ke4 {[%emt 0:00:01]}
Ng7 {[%emt 0:00:02]} 64. Nd5 {[%emt 0:00:28]} Nf5 {[%emt 0:00:08]} 65. Nb4 {
[%emt 0:00:22]} Ne7 {[%emt 0:00:14]} 66. Nd3 {[%emt 0:00:14]} Nf5 {[%emt 0:00:
10]} 67. Nb4 {[%emt 0:00:02]} Ne7 {[%emt 0:00:16]} 68. Ke3 {[%emt 0:00:18]} Ke6
{[%emt 0:00:07]} 69. Ke4 {[%emt 0:00:05]} Kd7 {[%emt 0:00:22]} 70. Ke3 {[%emt
0:00:06]} Nf5+ {[%emt 0:00:16]} 71. Ke4 {[%emt 0:00:02]} Ne7 {[%emt 0:00:03]}
72. Ke3 {[%emt 0:00:02]} Nf5+ {[%emt 0:00:13]} 73. Ke4 {[%emt 0:00:02]} Ne7 {
[%emt 0:00:03]} 1/2-1/2

[Event "16th EWICC 2015"]
[Site "Kutaisi"]
[Date "2015.06.01"]
[Round "3"]
[White "Khurtsidze, Nino"]
[Black "Sviridova, Vlada"]
[Result "0-1"]
[ECO "D45"]
[WhiteElo "2451"]
[BlackElo "2087"]
[Annotator "Robot 11"]
[PlyCount "76"]
[EventDate "2015.??.??"]
[EventCountry "GEO"]
[TimeControl "900+10"]

1. Nf3 {[%emt 0:00:01]} d5 {[%emt 0:00:01]} 2. e3 {[%emt 0:00:02]} Nf6 {[%emt
0:00:02]} 3. c4 {[%emt 0:00:02]} c6 {[%emt 0:00:01]} 4. Nc3 {[%emt 0:00:04]} e6
{[%emt 0:00:03]} 5. d4 {[%emt 0:00:07]} a6 {[%emt 0:00:03]} 6. a4 {[%emt 0:00:
03]} dxc4 {[%emt 0:00:38]} 7. Bxc4 {[%emt 0:00:02]} c5 {[%emt 0:00:01]} 8. O-O
{[%emt 0:00:06]} Nc6 {[%emt 0:00:05]} 9. Qe2 {[%emt 0:00:12]} cxd4 {[%emt 0:00:
49]} 10. exd4 {[%emt 0:00:29]} Be7 {[%emt 0:00:29]} 11. Be3 {[%emt 0:00:11]}
O-O {[%emt 0:00:14]} 12. Rad1 {[%emt 0:00:01]} Nb4 {[%emt 0:00:18]} 13. Ne5 {
[%emt 0:00:05]} Nbd5 {[%emt 0:00:38]} 14. Bc1 {[%emt 0:00:23]} Bd7 {[%emt 0:00:
42]} 15. Rd3 {[%emt 0:00:31]} Nxc3 {[%emt 0:06:03]} 16. bxc3 {[%emt 0:00:11]}
b5 {[%emt 0:00:16]} 17. axb5 {[%emt 0:00:22]} axb5 {[%emt 0:00:33]} 18. Bb3 {
[%emt 0:00:12]} Nd5 {[%emt 0:01:24]} 19. Rh3 {[%emt 0:00:06]} g6 {[%emt 0:01:
26]} 20. Bh6 {[%emt 0:04:01]} Re8 {[%emt 0:00:04]} 21. Qf3 {[%emt 0:00:04]} Nf6
{[%emt 0:00:59]} 22. Bg5 {[%emt 0:00:15]} Ra3 {[%emt 0:00:17]} 23. Bd1 {[%emt
0:01:43]} Ra7 {[%emt 0:00:08]} 24. Be2 {[%emt 0:00:07]} b4 {[%emt 0:00:23]} 25.
Nxd7 {[%emt 0:00:17]} Nxd7 {[%emt 0:00:11]} 26. Be3 {[%emt 0:01:06]} b3 {[%emt
0:00:27]} 27. d5 {[%emt 0:01:37]} Bc5 {[%emt 0:00:07]} 28. dxe6 {[%emt 0:00:25]
} Rxe6 {[%emt 0:00:05]} 29. Rxh7 {[%emt 0:00:07]} Qf6 {[%emt 0:00:19]} 30. Qh3
{[%emt 0:00:11]} b2 {[%emt 0:00:11]} 31. Bd3 {[%emt 0:01:01]} Bxe3 {[%emt 0:00:
13]} 32. fxe3 {[%emt 0:00:01]} Ra1 {[%emt 0:00:07]} 33. Bb1 {[%emt 0:00:51]}
Qxf1+ {[%emt 0:00:10]} 34. Kxf1 {[%emt 0:00:01]} Rxb1+ {[%emt 0:00:01]} 35. Ke2
{[%emt 0:01:12]} Re1+ {[%emt 0:00:02]} 36. Kf2 {[%emt 0:00:01]} Rf6+ {[%emt 0:
00:16]} 37. Kxe1 {[%emt 0:00:06]} b1=Q+ {[%emt 0:00:03]} 38. Ke2 {[%emt 0:00:
02]} Qf1+ {[%emt 0:00:07]} 0-1

[Event "16th EWICC 2015"]
[Site "Kutaisi"]
[Date "2015.06.01"]
[Round "3"]
[White "Kostava, Elene"]
[Black "Zaksaite, Salomeja"]
[Result "0-1"]
[ECO "D94"]
[WhiteElo "1691"]
[BlackElo "2203"]
[Annotator "Robot 11"]
[PlyCount "72"]
[EventDate "2015.??.??"]
[EventCountry "GEO"]
[TimeControl "900+10"]

1. d4 {[%emt 0:00:02]} Nf6 {[%emt 0:00:01]} 2. Nf3 {[%emt 0:00:03]} g6 {[%emt
0:00:03]} 3. c4 {[%emt 0:00:02]} Bg7 {[%emt 0:00:01]} 4. Nc3 {[%emt 0:00:01]}
d5 {[%emt 0:00:01]} 5. e3 {[%emt 0:00:19]} O-O {[%emt 0:00:31]} 6. Bd3 {[%emt
0:00:08]} dxc4 {[%emt 0:00:06]} 7. Bxc4 {[%emt 0:00:01]} c5 {[%emt 0:00:01]} 8.
h3 {[%emt 0:00:25]} cxd4 {[%emt 0:00:08]} 9. Nxd4 {[%emt 0:00:02]} Qc7 {[%emt
0:00:24]} 10. Qe2 {[%emt 0:00:19]} a6 {[%emt 0:00:04]} 11. a4 {[%emt 0:01:03]}
e5 {[%emt 0:00:09]} 12. Nf3 {[%emt 0:00:24]} Nc6 {[%emt 0:00:10]} 13. O-O {
[%emt 0:00:37]} e4 {[%emt 0:04:20]} 14. Nd2 {[%emt 0:00:36]} Ne5 {[%emt 0:02:
08]} 15. Nd5 {[%emt 0:02:43]} Nxd5 {[%emt 0:01:54]} 16. Bxd5 {[%emt 0:00:01]}
Nd3 {[%emt 0:01:40]} 17. Nxe4 {[%emt 0:00:30]} Nxc1 {[%emt 0:01:13]} 18. Raxc1
{[%emt 0:01:05]} Qa5 {[%emt 0:00:37]} 19. Bb3 {[%emt 0:01:23]} Qb4 {[%emt 0:00:
05]} 20. Nc5 {[%emt 0:03:45]} b6 {[%emt 0:01:18]} 21. Bd5 {[%emt 0:01:42]} Ra7
{[%emt 0:00:27]} 22. Nd3 {[%emt 0:00:02]} Qxa4 {[%emt 0:00:06]} 23. Rc4 {[%emt
0:00:16]} Qd7 {[%emt 0:00:11]} 24. Rfc1 {[%emt 0:00:14]} a5 {[%emt 0:00:10]}
25. Bc6 {[%emt 0:00:08]} Qf5 {[%emt 0:01:13]} 26. e4 {[%emt 0:00:23]} Qg5 {
[%emt 0:00:04]} 27. f4 {[%emt 0:00:24]} Qe7 {[%emt 0:00:01]} 28. Bb5 {[%emt 0:
00:38]} Be6 {[%emt 0:00:04]} 29. Rc6 {[%emt 0:00:09]} Bd5 {[%emt 0:00:28]} 30.
Rxb6 {[%emt 0:00:20]} Bd4+ {[%emt 0:00:05]} 31. Kf1 {[%emt 0:00:16]} Bxb6 {
[%emt 0:00:41]} 32. exd5 {[%emt 0:00:03]} Qf6 {[%emt 0:00:05]} 33. Rc4 {[%emt
0:00:31]} Re7 {[%emt 0:00:24]} 34. Ne5 {[%emt 0:00:14]} Bc7 {[%emt 0:00:28]}
35. Rc6 {[%emt 0:00:12]} Qxf4+ {[%emt 0:00:10]} 36. Kg1 {[%emt 0:00:14]} Bxe5 {
[%emt 0:00:11]} 0-1

[Event "16th EWICC 2015"]
[Site "Kutaisi"]
[Date "2015.06.01"]
[Round "3"]
[White "Kosteniuk, Alexandra"]
[Black "Gevorgyan, Maria"]
[Result "1-0"]
[ECO "C43"]
[WhiteElo "2530"]
[BlackElo "2190"]
[Annotator "Robot 11"]
[PlyCount "51"]
[EventDate "2015.??.??"]
[EventCountry "GEO"]
[TimeControl "900+10"]

1. e4 {[%emt 0:00:01]} e5 {[%emt 0:00:01]} 2. Nf3 {[%emt 0:00:02]} Nf6 {[%emt
0:00:02]} 3. d4 {[%emt 0:00:01]} Nxe4 {[%emt 0:00:01]} 4. Bd3 {[%emt 0:00:01]}
Nc6 {[%emt 0:00:01]} 5. O-O {[%emt 0:00:27]} d5 {[%emt 0:00:14]} 6. Re1 {[%emt
0:00:46]} Bg4 {[%emt 0:01:01]} 7. dxe5 {[%emt 0:00:53]} Bc5 {[%emt 0:04:04]} 8.
Be3 {[%emt 0:00:16]} Bxe3 {[%emt 0:00:29]} 9. Rxe3 {[%emt 0:00:02]} Nxe5 {
[%emt 0:01:15]} 10. Be2 {[%emt 0:03:42]} Ng6 {[%emt 0:04:54]} 11. Nc3 {[%emt 0:
00:24]} O-O {[%emt 0:00:32]} 12. Nxd5 {[%emt 0:00:11]} Nd6 {[%emt 0:00:07]} 13.
h3 {[%emt 0:01:07]} Be6 {[%emt 0:00:09]} 14. Rd3 {[%emt 0:02:35]} Bxd5 {[%emt
0:00:02]} 15. Rxd5 {[%emt 0:00:02]} Nf4 {[%emt 0:00:01]} 16. Re5 {[%emt 0:00:
16]} Nxe2+ {[%emt 0:01:43]} 17. Qxe2 {[%emt 0:00:02]} Qf6 {[%emt 0:00:04]} 18.
Re1 {[%emt 0:00:25]} h6 {[%emt 0:00:05]} 19. c4 {[%emt 0:00:31]} Rfe8 {[%emt 0:
01:11]} 20. c5 {[%emt 0:00:09]} Rxe5 {[%emt 0:00:22]} 21. Nxe5 {[%emt 0:00:02]}
Ne8 {[%emt 0:00:36]} 22. Qb5 {[%emt 0:00:21]} b6 {[%emt 0:00:36]} 23. Nc6 {
[%emt 0:01:14]} a6 {[%emt 0:00:23]} 24. Qa4 {[%emt 0:00:05]} Qxb2 {[%emt 0:00:
25]} 25. Qe4 {[%emt 0:00:48]} Nf6 {[%emt 0:00:03]} 26. Ne7+ {[%emt 0:00:02]}
1-0

[Event "16th EWICC 2015"]
[Site "Kutaisi"]
[Date "2015.06.01"]
[Round "3"]
[White "Mammadova, Gulnar"]
[Black "Mammadova, Narmin"]
[Result "1-0"]
[ECO "C11"]
[WhiteElo "2293"]
[BlackElo "2117"]
[Annotator "Robot 11"]
[PlyCount "57"]
[EventDate "2015.??.??"]
[EventCountry "GEO"]
[TimeControl "900+10"]

1. e4 {[%emt 0:00:02]} e6 {[%emt 0:00:06]} 2. d4 {[%emt 0:00:03]} d5 {[%emt 0:
00:01]} 3. Nc3 {[%emt 0:00:03]} Nf6 {[%emt 0:00:07]} 4. Bg5 {[%emt 0:00:02]}
dxe4 {[%emt 0:00:10]} 5. Nxe4 {[%emt 0:00:01]} Nbd7 {[%emt 0:00:05]} 6. Nf3 {
[%emt 0:00:15]} h6 {[%emt 0:00:03]} 7. Nxf6+ {[%emt 0:00:02]} Nxf6 {[%emt 0:00:
01]} 8. Bh4 {[%emt 0:00:05]} c5 {[%emt 0:00:03]} 9. Bd3 {[%emt 0:00:08]} cxd4 {
[%emt 0:00:17]} 10. Nxd4 {[%emt 0:00:08]} Bc5 {[%emt 0:00:40]} 11. Nb3 {[%emt
0:00:05]} Be7 {[%emt 0:00:12]} 12. O-O {[%emt 0:00:28]} O-O {[%emt 0:00:03]}
13. Qe2 {[%emt 0:00:28]} Qc7 {[%emt 0:02:03]} 14. Rfe1 {[%emt 0:01:23]} Rd8 {
[%emt 0:00:21]} 15. Rad1 {[%emt 0:00:40]} b6 {[%emt 0:00:45]} 16. c3 {[%emt 0:
02:47]} Bb7 {[%emt 0:00:37]} 17. Nd4 {[%emt 0:00:12]} Rd7 {[%emt 0:05:27]} 18.
Bb5 {[%emt 0:01:25]} Rd5 {[%emt 0:01:09]} 19. Nxe6 {[%emt 0:01:04]} fxe6 {
[%emt 0:00:32]} 20. Qxe6+ {[%emt 0:00:02]} Kh8 {[%emt 0:00:30]} 21. Rxd5 {
[%emt 0:00:27]} Nxd5 {[%emt 0:01:41]} 22. Bxe7 {[%emt 0:00:01]} Nf4 {[%emt 0:
00:34]} 23. Qf5 {[%emt 0:01:28]} a6 {[%emt 0:00:32]} 24. Bf1 {[%emt 0:01:23]}
Re8 {[%emt 0:01:36]} 25. Re5 {[%emt 0:00:34]} Nh3+ {[%emt 0:01:19]} 26. gxh3 {
[%emt 0:00:15]} Qc6 {[%emt 0:00:09]} 27. f3 {[%emt 0:00:07]} b5 {[%emt 0:00:13]
} 28. Bd3 {[%emt 0:00:27]} Qb6+ {[%emt 0:00:08]} 29. Bc5 {[%emt 0:00:07]} 1-0

[Event "16th EWICC 2015"]
[Site "Kutaisi"]
[Date "2015.06.01"]
[Round "3"]
[White "Melashvili, Nino"]
[Black "Zhukova, Natalia"]
[Result "0-1"]
[ECO "D02"]
[WhiteElo "2173"]
[BlackElo "2456"]
[Annotator "Robot 11"]
[PlyCount "66"]
[EventDate "2015.??.??"]
[EventCountry "GEO"]
[TimeControl "900+10"]

1. Nf3 {[%emt 0:00:01]} d5 {[%emt 0:00:01]} 2. d4 {[%emt 0:00:02]} c5 {[%emt 0:
00:01]} 3. e3 {[%emt 0:00:02]} Nf6 {[%emt 0:00:02]} 4. c4 {[%emt 0:00:05]} e6 {
[%emt 0:00:02]} 5. Nc3 {[%emt 0:00:01]} a6 {[%emt 0:00:01]} 6. Qc2 {[%emt 0:00:
13]} Nc6 {[%emt 0:00:33]} 7. cxd5 {[%emt 0:02:19]} exd5 {[%emt 0:00:03]} 8. a3
{[%emt 0:00:03]} Bg4 {[%emt 0:00:40]} 9. Ne5 {[%emt 0:00:26]} Be6 {[%emt 0:01:
32]} 10. Nxc6 {[%emt 0:00:29]} bxc6 {[%emt 0:00:02]} 11. dxc5 {[%emt 0:02:40]}
Bxc5 {[%emt 0:00:08]} 12. b4 {[%emt 0:00:06]} Bd6 {[%emt 0:00:31]} 13. Bb2 {
[%emt 0:00:29]} O-O {[%emt 0:00:04]} 14. Be2 {[%emt 0:00:03]} a5 {[%emt 0:00:
43]} 15. b5 {[%emt 0:00:47]} c5 {[%emt 0:00:04]} 16. Rd1 {[%emt 0:00:16]} Qc7 {
[%emt 0:01:17]} 17. h3 {[%emt 0:00:03]} Rfe8 {[%emt 0:01:51]} 18. O-O {[%emt 0:
00:07]} Rad8 {[%emt 0:01:41]} 19. Bf3 {[%emt 0:00:15]} Qd7 {[%emt 0:01:16]} 20.
Qa4 {[%emt 0:05:20]} Bc7 {[%emt 0:02:01]} 21. Qh4 {[%emt 0:00:10]} d4 {[%emt 0:
01:51]} 22. exd4 {[%emt 0:00:17]} cxd4 {[%emt 0:00:01]} 23. Ne4 {[%emt 0:00:10]
} Be5 {[%emt 0:00:56]} 24. a4 {[%emt 0:01:25]} Qe7 {[%emt 0:00:15]} 25. Rfe1 {
[%emt 0:01:17]} Bb3 {[%emt 0:00:22]} 26. Nxf6+ {[%emt 0:00:07]} Qxf6 {[%emt 0:
00:40]} 27. Qxf6 {[%emt 0:00:08]} gxf6 {[%emt 0:00:02]} 28. Ra1 {[%emt 0:00:30]
} d3 {[%emt 0:00:10]} 29. Bxe5 {[%emt 0:00:24]} d2 {[%emt 0:00:25]} 30. Rf1 {
[%emt 0:01:04]} Rxe5 {[%emt 0:00:13]} 31. Bd1 {[%emt 0:00:04]} Bc4 {[%emt 0:00:
03]} 32. f4 {[%emt 0:00:16]} Re1 {[%emt 0:00:19]} 33. Bc2 {[%emt 0:00:28]} Bxf1
{[%emt 0:00:09]} 0-1

[Event "16th EWICC 2015"]
[Site "Kutaisi"]
[Date "2015.06.01"]
[Round "3"]
[White "Melia, Salome"]
[Black "Khmiadashvili, Tamar"]
[Result "1/2-1/2"]
[ECO "B06"]
[WhiteElo "2452"]
[BlackElo "2043"]
[Annotator "Robot 11"]
[PlyCount "118"]
[EventDate "2015.??.??"]
[EventCountry "GEO"]
[TimeControl "900+10"]

1. e4 {[%emt 0:00:02]} c6 {[%emt 0:00:07]} 2. d4 {[%emt 0:00:02]} g6 {[%emt 0:
00:02]} 3. Nc3 {[%emt 0:00:03]} Bg7 {[%emt 0:00:09]} 4. Nf3 {[%emt 0:00:02]} d6
{[%emt 0:00:20]} 5. Be2 {[%emt 0:00:02]} Bg4 {[%emt 0:00:06]} 6. O-O {[%emt 0:
00:04]} h5 {[%emt 0:00:22]} 7. h3 {[%emt 0:00:24]} Bxf3 {[%emt 0:00:05]} 8.
Bxf3 {[%emt 0:00:01]} Nd7 {[%emt 0:00:11]} 9. Re1 {[%emt 0:00:09]} e5 {[%emt 0:
00:24]} 10. dxe5 {[%emt 0:00:41]} dxe5 {[%emt 0:00:17]} 11. a4 {[%emt 0:00:28]}
a5 {[%emt 0:00:12]} 12. b3 {[%emt 0:00:02]} Ngf6 {[%emt 0:00:45]} 13. Be3 {
[%emt 0:00:34]} O-O {[%emt 0:00:47]} 14. Qd2 {[%emt 0:00:52]} Qe7 {[%emt 0:01:
31]} 15. Rad1 {[%emt 0:00:02]} Rfd8 {[%emt 0:01:07]} 16. Qc1 {[%emt 0:00:57]}
Nc5 {[%emt 0:02:11]} 17. Rxd8+ {[%emt 0:03:00]} Rxd8 {[%emt 0:00:07]} 18. Rd1 {
[%emt 0:00:07]} Ne6 {[%emt 0:00:51]} 19. Rxd8+ {[%emt 0:01:27]} Qxd8 {[%emt 0:
00:13]} 20. Be2 {[%emt 0:00:03]} Nd7 {[%emt 0:00:50]} 21. Qd2 {[%emt 0:01:42]}
Qc7 {[%emt 0:00:30]} 22. Bc4 {[%emt 0:00:54]} Ndc5 {[%emt 0:00:54]} 23. f3 {
[%emt 0:00:02]} Bf6 {[%emt 0:01:00]} 24. Ne2 {[%emt 0:00:46]} Qd8 {[%emt 0:00:
03]} 25. Qxd8+ {[%emt 0:01:47]} Bxd8 {[%emt 0:00:04]} 26. g3 {[%emt 0:00:15]}
h4 {[%emt 0:00:38]} 27. g4 {[%emt 0:00:29]} g5 {[%emt 0:01:03]} 28. Kf2 {[%emt
0:00:53]} Kg7 {[%emt 0:00:09]} 29. Nc3 {[%emt 0:00:37]} Be7 {[%emt 0:00:39]}
30. Be2 {[%emt 0:00:49]} Nd4 {[%emt 0:00:25]} 31. Bd1 {[%emt 0:00:01]} Nce6 {
[%emt 0:00:12]} 32. Nb1 {[%emt 0:00:20]} Nf4 {[%emt 0:00:15]} 33. Bxf4 {[%emt
0:00:12]} gxf4 {[%emt 0:01:16]} 34. Nd2 {[%emt 0:00:41]} b5 {[%emt 0:00:44]}
35. c3 {[%emt 0:00:21]} Ne6 {[%emt 0:00:02]} 36. Be2 {[%emt 0:00:22]} bxa4 {
[%emt 0:00:15]} 37. bxa4 {[%emt 0:00:01]} Nc5 {[%emt 0:01:09]} 38. Bd1 {[%emt
0:00:02]} f6 {[%emt 0:00:40]} 39. Ke2 {[%emt 0:00:06]} Ne6 {[%emt 0:00:08]} 40.
Kf1 {[%emt 0:00:41]} Nc5 {[%emt 0:00:19]} 41. Nc4 {[%emt 0:00:15]} Bd8 {[%emt
0:00:09]} 42. Nd6 {[%emt 0:00:03]} Kg6 {[%emt 0:00:21]} 43. Bc2 {[%emt 0:00:41]
} Bc7 {[%emt 0:00:22]} 44. Nf5 {[%emt 0:00:05]} Kg5 {[%emt 0:00:08]} 45. Ne7 {
[%emt 0:00:05]} Bb6 {[%emt 0:00:06]} 46. Nxc6 {[%emt 0:00:13]} Ne6 {[%emt 0:00:
02]} 47. Ne7 {[%emt 0:00:07]} Be3 {[%emt 0:00:06]} 48. Nd5 {[%emt 0:00:07]} Bc5
{[%emt 0:00:03]} 49. Ke2 {[%emt 0:00:24]} Kg6 {[%emt 0:00:05]} 50. Bd3 {[%emt
0:00:08]} Ng5 {[%emt 0:00:04]} 51. Kf1 {[%emt 0:00:58]} Nxh3 {[%emt 0:00:10]}
52. Kg2 {[%emt 0:00:03]} Ng5 {[%emt 0:00:01]} 53. Be2 {[%emt 0:00:02]} h3+ {
[%emt 0:00:13]} 54. Kh1 {[%emt 0:00:05]} Ne6 {[%emt 0:00:10]} 55. Kh2 {[%emt 0:
00:07]} Ng5 {[%emt 0:00:01]} 56. Kh1 {[%emt 0:00:33]} Kf7 {[%emt 0:00:07]} 57.
Nc7 {[%emt 0:00:08]} Ke7 {[%emt 0:00:25]} 58. Nd5+ {[%emt 0:00:05]} Kf7 {[%emt
0:00:02]} 59. Nc7 {[%emt 0:00:03]} Ke7 {[%emt 0:00:03]} 1/2-1/2

[Event "16th EWICC 2015"]
[Site "Kutaisi"]
[Date "2015.06.01"]
[Round "3"]
[White "Paehtz, Elisabeth"]
[Black "Gvetadze, Sofio"]
[Result "1-0"]
[ECO "A05"]
[WhiteElo "2473"]
[BlackElo "2319"]
[Annotator "Robot 11"]
[PlyCount "89"]
[EventDate "2015.??.??"]
[EventCountry "GEO"]
[TimeControl "900+10"]

1. Nf3 {[%emt 0:00:01]} Nf6 {[%emt 0:00:04]} 2. c4 {[%emt 0:00:03]} e6 {[%emt
0:00:05]} 3. g3 {[%emt 0:00:04]} c5 {[%emt 0:00:09]} 4. Bg2 {[%emt 0:00:03]}
Be7 {[%emt 0:00:02]} 5. b3 {[%emt 0:00:05]} O-O {[%emt 0:00:04]} 6. Bb2 {[%emt
0:00:03]} a6 {[%emt 0:00:10]} 7. O-O {[%emt 0:00:26]} Nc6 {[%emt 0:00:19]} 8.
e3 {[%emt 0:00:05]} d5 {[%emt 0:00:31]} 9. Qe2 {[%emt 0:00:10]} Re8 {[%emt 0:
00:28]} 10. Re1 {[%emt 0:01:02]} Bf8 {[%emt 0:01:01]} 11. Ne5 {[%emt 0:00:01]}
Nxe5 {[%emt 0:00:13]} 12. Bxe5 {[%emt 0:00:03]} b5 {[%emt 0:04:45]} 13. Bxf6 {
[%emt 0:01:32]} Qxf6 {[%emt 0:00:09]} 14. Nc3 {[%emt 0:00:01]} b4 {[%emt 0:00:
22]} 15. Na4 {[%emt 0:00:02]} Bb7 {[%emt 0:00:04]} 16. Nb6 {[%emt 0:00:56]}
Rad8 {[%emt 0:00:06]} 17. Rac1 {[%emt 0:00:34]} Qe7 {[%emt 0:00:11]} 18. cxd5 {
[%emt 0:02:05]} exd5 {[%emt 0:00:02]} 19. Na4 {[%emt 0:00:01]} Rc8 {[%emt 0:00:
31]} 20. d3 {[%emt 0:00:12]} Rc7 {[%emt 0:03:29]} 21. Rc2 {[%emt 0:00:12]} Qd7
{[%emt 0:00:10]} 22. Rec1 {[%emt 0:00:19]} Qb5 {[%emt 0:00:02]} 23. Qd2 {[%emt
0:00:47]} g6 {[%emt 0:00:15]} 24. Bf1 {[%emt 0:00:31]} Bc8 {[%emt 0:00:19]} 25.
Nxc5 {[%emt 0:00:34]} d4 {[%emt 0:02:37]} 26. exd4 {[%emt 0:00:01]} Bg7 {[%emt
0:00:20]} 27. Rc4 {[%emt 0:00:14]} a5 {[%emt 0:00:18]} 28. Ne4 {[%emt 0:01:10]}
Rxc4 {[%emt 0:00:03]} 29. bxc4 {[%emt 0:01:05]} Qb8 {[%emt 0:00:41]} 30. d5 {
[%emt 0:00:20]} f5 {[%emt 0:00:12]} 31. Ng5 {[%emt 0:00:32]} Bh6 {[%emt 0:00:
54]} 32. h4 {[%emt 0:00:12]} Qe5 {[%emt 0:00:12]} 33. d4 {[%emt 0:00:25]} Qg7 {
[%emt 0:00:20]} 34. Bg2 {[%emt 0:00:11]} a4 {[%emt 0:00:29]} 35. Rb1 {[%emt 0:
00:13]} b3 {[%emt 0:00:24]} 36. axb3 a3 37. Ra1 {[%emt 0:00:05]} Qa7 {[%emt 0:
00:03]} 38. c5 {[%emt 0:00:23]} f4 {[%emt 0:00:49]} 39. gxf4 {[%emt 0:00:21]}
Bf5 {[%emt 0:00:12]} 40. d6 {[%emt 0:00:15]} Kg7 {[%emt 0:00:18]} 41. c6 {
[%emt 0:00:21]} Qa6 {[%emt 0:00:09]} 42. d7 {[%emt 0:00:14]} Rf8 {[%emt 0:00:
04]} 43. Qb4 {[%emt 0:00:12]} Bxg5 {[%emt 0:00:11]} 44. hxg5 {[%emt 0:00:07]}
a2 {[%emt 0:00:01]} 45. Qxf8+ {[%emt 0:00:17]} 1-0